[Event "ONJK-C 2019"]
[Site "Borne"]
[Date "2019.08.05"]
[Round "1.1"]
[White "Klugstedt, Vincent"]
[Black "Wiggers, Finn"]
[Result "1-0"]
[ECO "D13"]
[WhiteElo "1834"]
[BlackElo "1354"]
[Annotator "NA"]
[PlyCount "43"]
[EventDate "2019.08.05"]
[EventType "swiss"]
[EventCountry "NED"]
[SourceTitle "playchess.com"]
[Source "ChessBase"]
[SourceQuality "1"]
[TimeControl "5400+30"]

1. d4 {[%emt 0:00:00]} d5 {[%emt 0:00:09]} 2. c4 {[%emt 0:00:00]} c6 {[%emt 0:02:05]} 3. Nc3 {[%emt 0:00:50]} Nf6 {[%emt 0:01:14]} 4. Nf3 {[%emt 0:02:29]} Nbd7 {[%emt 0:08:08]} 5. cxd5 {[%emt 0:02:12]} cxd5 {[%emt 0:03:17]} 6. Bf4 {[%emt 0:00:59]} g6 {[%emt 0:05:57]} 7. e3 {[%emt 0:01:20]} a6 {[%emt 0:05:58]} 8. Bd3 {[%emt 0:01:56]} Bg7 {[%emt 0:03:45]} 9. O-O {[%emt 0:03:20]} O-O {[%emt 0:00:55]} 10. Rc1 {[%emt 0:00:52]} Re8 {[%emt 0:06:54]} 11. Nb5 {[%emt 0:03:39]} e5 {[%emt 0:11:34]} 12. Nc7 {[%emt 0:14:36]} exf4 {[%emt 0:05:49]} 13. Nxa8 {[%emt 0:00:43]} fxe3 {[%emt 0:02:12]} 14. fxe3 {[%emt 0:00:21]} Re7 {[%emt 0:01:22]} 15. Qc2 {[%emt 0:01:31]} Ng4 {[%emt 0:03:51]} 16. Qxc8 {[%emt 0:01:52]} Qxc8 {[%emt 0:07:17]} 17. Rxc8+ {[%emt 0:00:15]} Nf8 {[%emt 0:01:40]} 18. Re1 {[%emt 0:02:23]} Bh6 {[%emt 0:02:25]} 19. Nb6 {[%emt 0:05:21]} Bxe3+ {[%emt 0:08:42]} 20. Kf1 {[%emt 0:00:56]} Nf2 {[%emt 0:01:53]} 21. Rxe3 {[%emt 0:00:48]} Rxe3 {[%emt 0:00:14]} 22. Kxf2 {[%emt 0:00:06]} 1-0

[Event "ONJK-C 2019"]
[Site "Borne"]
[Date "2019.08.05"]
[Round "1.2"]
[White "Groen, Jari"]
[Black "Nielsen, Philip"]
[Result "0-1"]
[ECO "B90"]
[WhiteElo "1349"]
[BlackElo "1797"]
[Annotator "NA"]
[PlyCount "124"]
[EventDate "2019.08.05"]
[EventType "swiss"]
[EventCountry "NED"]
[SourceTitle "playchess.com"]
[Source "ChessBase"]
[SourceQuality "1"]
[TimeControl "5400+30"]

1. e4 {[%emt 0:00:00]} c5 {[%emt 0:00:00]} 2. Nf3 {[%emt 0:00:00]} d6 {[%emt 0:00:00]} 3. d4 {[%emt 0:00:00]} cxd4 {[%emt 0:00:04]} 4. Nxd4 {[%emt 0:00:00]} Nf6 {[%emt 0:00:16]} 5. Nc3 {[%emt 0:00:02]} a6 {[%emt 0:01:09]} 6. Be3 {[%emt 0:02:31]} b5 {[%emt 0:04:12]} 7. a3 {[%emt 0:03:21]} Bb7 {[%emt 0:02:37]} 8. f3 {[%emt 0:00:34]} Nbd7 {[%emt 0:03:41]} 9. Be2 {[%emt 0:03:08]} Qc7 {[%emt 0:03:59]} 10. O-O {[%emt 0:02:35]} g6 {[%emt 0:03:56]} 11. Qd2 {[%emt 0:06:49]} Bg7 {[%emt 0:00:45]} 12. Rad1 {[%emt 0:03:39]} Ne5 {[%emt 0:02:26]} 13. Bh6 {[%emt 0:08:33]} O-O {[%emt 0:02:00]} 14. Bxg7 {[%emt 0:00:51]} Kxg7 {[%emt 0:00:14]} 15. Kh1 {[%emt 0:06:17]} Rac8 {[%emt 0:01:49]} 16. Nb3 {[%emt 0:06:57]} Nfd7 {[%emt 0:02:05]} 17. Qd4 {[%emt 0:07:56]} Kg8 {[%emt 0:01:25]} 18. f4 {[%emt 0:02:44]} Nc4 {[%emt 0:01:33]} 19. Bxc4 {[%emt 0:02:37]} Qxc4 {[%emt 0:00:15]} 20. Na5 {[%emt 0:05:10]} Qxd4 {[%emt 0:01:12]} 21. Rxd4 {[%emt 0:00:07]} Ba8 {[%emt 0:00:33]} 22. e5 {[%emt 0:02:32]} d5 {[%emt 0:08:59]} 23. Nxd5 {[%emt 0:15:15]} Rxc2 {[%emt 0:00:36]} 24. Ne3 {[%emt 0:00:46]} Re2 {[%emt 0:01:50]} 25. Rxd7 {[%emt 0:02:15]} Rxe3 {[%emt 0:00:12]} 26. Kg1 {[%emt 0:01:26]} Rc8 {[%emt 0:01:47]} 27. Rfd1 {[%emt 0:09:51]} Kg7 {[%emt 0:02:08]} 28. Rd8 {[%emt 0:02:21]} Rxd8 {[%emt 0:00:12]} 29. Rxd8 {[%emt 0:00:08]} Be4 {[%emt 0:00:16]} 30. Rd2 {[%emt 0:00:34]} Re1+ {[%emt 0:06:13]} 31. Kf2 {[%emt 0:00:10]} Rc1 {[%emt 0:01:11]} 32. Nb3 {[%emt 0:02:07]} Rc4 {[%emt 0:01:38]} 33. Rd4 {[%emt 0:00:50]} Rc2+ {[%emt 0:01:32]} 34. Rd2 {[%emt 0:00:08]} Rc7 {[%emt 0:01:10]} 35. Ke3 {[%emt 0:01:41]} Bf5 {[%emt 0:01:20]} 36. Nd4 {[%emt 0:02:39]} Bc8 {[%emt 0:02:00]} 37. Rc2 {[%emt 0:00:41]} Rxc2 {[%emt 0:00:25]} 38. Nxc2 {[%emt 0:00:04]} Bb7 {[%emt 0:00:15]} 39. g3 {[%emt 0:00:11]} Kh6 {[%emt 0:01:15]} 40. Nd4 {[%emt 0:01:49]} Kh5 {[%emt 0:01:08]} 41. f5 {[%emt 0:00:34]} Kg4 {[%emt 0:01:18]} 42. fxg6 {[%emt 0:00:27]} hxg6 {[%emt 0:00:13]} 43. Ne2 {[%emt 0:00:32]} Kh3 {[%emt 0:00:39]} 44. Kf4 {[%emt 0:00:32]} Kxh2 {[%emt 0:00:43]} 45. Kg5 {[%emt 0:00:35]} Bf3 {[%emt 0:01:02]} 46. Nd4 {[%emt 0:00:21]} Kxg3 {[%emt 0:00:23]} 47. e6 {[%emt 0:00:30]} Bd5 {[%emt 0:01:42]} 48. exf7 {[%emt 0:00:25]} Bxf7 {[%emt 0:00:10]} 49. Nc6 {[%emt 0:00:15]} Kf2 {[%emt 0:02:41]} 50. Nb4 {[%emt 0:00:55]} Kf3 {[%emt 0:01:05]} 51. Nxa6 {[%emt 0:00:22]} e5 {[%emt 0:00:27]} 52. Kf6 {[%emt 0:00:33]} e4 {[%emt 0:01:46]} 53. Nb4 {[%emt 0:00:31]} Be8 {[%emt 0:01:53]} 54. Ke5 {[%emt 0:00:31]} g5 {[%emt 0:00:33]} 55. Kd4 {[%emt 0:00:31]} g4 {[%emt 0:00:29]} 56. Nc2 {[%emt 0:00:14]} g3 {[%emt 0:01:11]} 57. Ne1+ {[%emt 0:00:43]} Kf2 {[%emt 0:00:47]} 58. Kxe4 {[%emt 0:00:35]} Bc6+ {[%emt 0:01:08]} 59. Kf4 {[%emt 0:00:31]} Kxe1 {[%emt 0:00:17]} 60. Kxg3 {[%emt 0:00:04]} Kd2 {[%emt 0:00:14]} 61. b3 {[%emt 0:00:38]} Kc3 {[%emt 0:00:15]} 62. a4 {[%emt 0:00:07]} b4 {[%emt 0:00:07]} 0-1

[Event "ONJK-C 2019"]
[Site "Borne"]
[Date "2019.08.05"]
[Round "1.3"]
[White "De Rycke, Tyani"]
[Black "Vleming, Annabel"]
[Result "1-0"]
[ECO "B26"]
[WhiteElo "1787"]
[BlackElo "1334"]
[Annotator "NA"]
[PlyCount "59"]
[EventDate "2019.08.05"]
[EventType "swiss"]
[EventCountry "NED"]
[SourceTitle "playchess.com"]
[Source "ChessBase"]
[SourceQuality "1"]
[TimeControl "5400+30"]

1. e4 {[%emt 0:00:00]} c5 {[%emt 0:00:00]} 2. Nc3 {[%emt 0:00:00]} g6 {[%emt 0:00:00]} 3. g3 {[%emt 0:00:00]} Bg7 {[%emt 0:00:00]} 4. Bg2 {[%emt 0:00:00]} Nc6 {[%emt 0:00:34]} 5. d3 {[%emt 0:00:00]} Nf6 {[%emt 0:00:32]} 6. Be3 {[%emt 0:00:03]} d6 {[%emt 0:00:42]} 7. h3 {[%emt 0:00:06]} Qa5 {[%emt 0:05:51]} 8. Qd2 {[%emt 0:00:19]} Nd7 {[%emt 0:02:33]} 9. Nge2 {[%emt 0:00:22]} Nb6 {[%emt 0:03:05]} 10. O-O {[%emt 0:00:41]} Nd7 {[%emt 0:04:35]} 11. f4 {[%emt 0:00:21]} Nd4 {[%emt 0:05:39]} 12. Rae1 {[%emt 0:03:06]} Nf6 {[%emt 0:07:19]} 13. g4 {[%emt 0:01:17]} h5 {[%emt 0:05:21]} 14. g5 {[%emt 0:01:51]} Nd7 {[%emt 0:03:47]} 15. f5 {[%emt 0:01:46]} Ne5 {[%emt 0:03:38]} 16. Nxd4 {[%emt 0:00:54]} cxd4 {[%emt 0:00:13]} 17. Bxd4 {[%emt 0:00:28]} Nf3+ {[%emt 0:02:32]} 18. Rxf3 {[%emt 0:00:49]} Bxd4+ {[%emt 0:00:06]} 19. Kh1 {[%emt 0:00:20]} gxf5 {[%emt 0:00:53]} 20. exf5 {[%emt 0:01:49]} Bxf5 {[%emt 0:01:01]} 21. Qf4 {[%emt 0:10:43]} Bxc3 {[%emt 0:01:31]} 22. bxc3 {[%emt 0:00:30]} e6 {[%emt 0:00:40]} 23. Qxf5 {[%emt 0:00:14]} Qxa2 {[%emt 0:01:24]} 24. Qxf7+ {[%emt 0:00:11]} Kd8 {[%emt 0:00:17]} 25. Rxe6 {[%emt 0:00:32]} Qa5 {[%emt 0:04:39]} 26. Qe7+ {[%emt 0:01:16]} Kc8 {[%emt 0:00:30]} 27. Rf8+ {[%emt 0:00:31]} Rxf8 {[%emt 0:01:11]} 28. Qxb7+ {[%emt 0:00:13]} Kd8 {[%emt 0:00:21]} 29. Rxd6+ {[%emt 0:00:07]} Ke8 {[%emt 0:00:28]} 30. Qd7# {[%emt 0:00:09]} 1-0

[Event "ONJK-C 2019"]
[Site "Borne"]
[Date "2019.08.05"]
[Round "1.4"]
[White "Yannopapas, Leontios"]
[Black "Goudriaan, Rafael"]
[Result "0-1"]
[ECO "D00"]
[WhiteElo "1428"]
[BlackElo "1719"]
[Annotator "NA"]
[PlyCount "84"]
[EventDate "2019.08.05"]
[EventType "swiss"]
[EventCountry "NED"]
[SourceTitle "playchess.com"]
[Source "ChessBase"]
[SourceQuality "1"]
[TimeControl "5400+30"]

1. d4 {[%emt 0:00:00]} d5 {[%emt 0:00:00]} 2. Nc3 {[%emt 0:00:00]} Nf6 {[%emt 0:00:08]} 3. Bf4 {[%emt 0:00:00]} Bf5 {[%emt 0:00:28]} 4. f3 {[%emt 0:00:45]} e6 {[%emt 0:01:34]} 5. g4 {[%emt 0:00:43]} Bg6 {[%emt 0:01:37]} 6. h4 {[%emt 0:01:12]} h6 {[%emt 0:00:54]} 7. e3 {[%emt 0:00:30]} Bb4 {[%emt 0:00:43]} 8. Bd3 {[%emt 0:09:47]} Bxd3 {[%emt 0:01:04]} 9. Qxd3 {[%emt 0:00:49]} Nc6 {[%emt 0:00:27]} 10. Nge2 {[%emt 0:01:32]} Qe7 {[%emt 0:01:37]} 11. O-O-O {[%emt 0:06:12]} O-O-O {[%emt 0:02:05]} 12. Kb1 {[%emt 0:07:35]} Kb8 {[%emt 0:00:52]} 13. Nc1 {[%emt 0:04:53]} e5 {[%emt 0:02:54]} 14. dxe5 {[%emt 0:10:18]} Nxe5 {[%emt 0:00:36]} 15. Bxe5 {[%emt 0:02:43]} Qxe5 {[%emt 0:00:05]} 16. Nb3 {[%emt 0:04:22]} Bxc3 {[%emt 0:00:56]} 17. bxc3 {[%emt 0:01:26]} Rhe8 {[%emt 0:01:36]} 18. Rde1 {[%emt 0:07:21]} Rd6 {[%emt 0:02:27]} 19. Qd4 {[%emt 0:04:22]} Rde6 {[%emt 0:01:55]} 20. Qd2 {[%emt 0:02:56]} Rc6 {[%emt 0:04:38]} 21. Qd4 {[%emt 0:02:27]} Rxc3 {[%emt 0:01:24]} 22. g5 {[%emt 0:04:40]} Nd7 {[%emt 0:01:49]} 23. f4 {[%emt 0:05:08]} Qxd4 {[%emt 0:01:06]} 24. exd4 {[%emt 0:00:23]} Rce3 {[%emt 0:00:11]} 25. Ref1 {[%emt 0:02:31]} h5 {[%emt 0:00:46]} 26. Kc1 {[%emt 0:02:34]} c6 {[%emt 0:01:04]} 27. Kd1 {[%emt 0:02:12]} Nb6 {[%emt 0:00:44]} 28. Nc5 {[%emt 0:04:23]} Kc7 {[%emt 0:01:35]} 29. Nd3 {[%emt 0:02:25]} R8e4 {[%emt 0:01:09]} 30. Re1 {[%emt 0:01:08]} Nc4 {[%emt 0:00:37]} 31. Rxe3 {[%emt 0:02:50]} Nxe3+ {[%emt 0:00:05]} 32. Kd2 {[%emt 0:00:17]} Nf5 {[%emt 0:01:03]} 33. c3 {[%emt 0:00:21]} b6 {[%emt 0:02:30]} 34. a3 {[%emt 0:00:45]} a5 {[%emt 0:00:32]} 35. Rh3 {[%emt 0:00:31]} Nd6 {[%emt 0:00:37]} 36. Kc2 {[%emt 0:00:55]} Nc4 {[%emt 0:00:20]} 37. Kb3 {[%emt 0:00:37]} Re2 {[%emt 0:00:31]} 38. f5 {[%emt 0:01:15]} b5 {[%emt 0:00:40]} 39. Rh1 {[%emt 0:01:06]} a4+ {[%emt 0:00:02]} 40. Kb4 {[%emt 0:00:57]} Kb6 {[%emt 0:00:10]} 41. Rf1 {[%emt 0:04:17]} Ne3 {[%emt 0:00:46]} 42. c4 {[%emt 0:01:19]} Nxf1 {[%emt 0:00:13]} 0-1

[Event "ONJK-C 2019"]
[Site "Borne"]
[Date "2019.08.05"]
[Round "1.5"]
[White "Neisingh, Nils"]
[Black "De Putter, Sven"]
[Result "0-1"]
[ECO "C78"]
[WhiteElo "1710"]
[BlackElo "1319"]
[Annotator "NA"]
[PlyCount "76"]
[EventDate "2019.08.05"]
[EventType "swiss"]
[EventCountry "NED"]
[SourceTitle "playchess.com"]
[Source "ChessBase"]
[SourceQuality "1"]
[TimeControl "5400+30"]

1. e4 {[%emt 0:00:00]} e5 {[%emt 0:00:00]} 2. Nf3 {[%emt 0:00:00]} Nc6 {[%emt 0:00:00]} 3. Bb5 {[%emt 0:00:00]} a6 {[%emt 0:00:00]} 4. Ba4 {[%emt 0:00:00]} b5 {[%emt 0:02:42]} 5. Bb3 {[%emt 0:00:06]} Nf6 {[%emt 0:01:38]} 6. O-O {[%emt 0:00:36]} d5 {[%emt 0:04:04]} 7. exd5 {[%emt 0:02:04]} Nxd5 {[%emt 0:00:32]} 8. Re1 {[%emt 0:02:56]} Be6 {[%emt 0:08:47]} 9. Nxe5 {[%emt 0:02:37]} Nxe5 {[%emt 0:02:30]} 10. Rxe5 {[%emt 0:00:05]} Be7 {[%emt 0:03:22]} 11. Qf3 {[%emt 0:02:11]} c6 {[%emt 0:02:36]} 12. Nc3 {[%emt 0:02:17]} Bf6 {[%emt 0:01:32]} 13. Re1 {[%emt 0:04:07]} O-O {[%emt 0:01:04]} 14. Ne4 {[%emt 0:07:45]} Re8 {[%emt 0:03:33]} 15. Nxf6+ {[%emt 0:07:27]} Qxf6 {[%emt 0:02:31]} 16. Qxf6 {[%emt 0:00:08]} Nxf6 {[%emt 0:00:10]} 17. Bxe6 {[%emt 0:00:06]} Rxe6 {[%emt 0:01:26]} 18. Rxe6 {[%emt 0:00:02]} fxe6 {[%emt 0:00:08]} 19. d4 {[%emt 0:00:10]} Rd8 {[%emt 0:00:17]} 20. c3 {[%emt 0:00:08]} e5 {[%emt 0:01:49]} 21. Be3 {[%emt 0:02:58]} Ng4 {[%emt 0:02:00]} 22. Bg5 {[%emt 0:04:23]} Rd5 {[%emt 0:01:16]} 23. Be3 {[%emt 0:03:52]} e4 {[%emt 0:04:41]} 24. Re1 {[%emt 0:05:49]} g5 {[%emt 0:04:04]} 25. h3 {[%emt 0:10:22]} Nf6 {[%emt 0:00:57]} 26. b3 {[%emt 0:06:17]} h6 {[%emt 0:02:04]} 27. h4 {[%emt 0:03:44]} Kg7 {[%emt 0:00:54]} 28. hxg5 {[%emt 0:00:30]} hxg5 {[%emt 0:01:19]} 29. Ra1 {[%emt 0:01:43]} Nh5 {[%emt 0:07:19]} 30. a4 {[%emt 0:03:54]} Nf4 {[%emt 0:01:59]} 31. Bxf4 {[%emt 0:02:10]} gxf4 {[%emt 0:01:03]} 32. axb5 {[%emt 0:01:45]} axb5 {[%emt 0:01:37]} 33. Re1 {[%emt 0:00:31]} b4 {[%emt 0:01:53]} 34. Rxe4 {[%emt 0:08:52]} bxc3 {[%emt 0:01:38]} 35. Re6 {[%emt 0:00:13]} c5 {[%emt 0:02:36]} 36. Kf1 {[%emt 0:04:39]} c2 {[%emt 0:06:07]} 37. Re1 {[%emt 0:00:33]} Rxd4 {[%emt 0:00:47]} 38. f3 {[%emt 0:00:47]} Rd1 {[%emt 0:00:13]} 0-1

[Event "ONJK-C 2019"]
[Site "Borne"]
[Date "2019.08.05"]
[Round "1.6"]
[White "Debunne, Lasse"]
[Black "De Vries, Fabian"]
[Result "0-1"]
[ECO "B72"]
[WhiteElo "1314"]
[BlackElo "1704"]
[Annotator "NA"]
[PlyCount "70"]
[EventDate "2019.08.05"]
[EventType "swiss"]
[EventCountry "NED"]
[SourceTitle "playchess.com"]
[Source "ChessBase"]
[SourceQuality "1"]
[TimeControl "5400+30"]

1. e4 {[%emt 0:00:00]} c5 {[%emt 0:00:00]} 2. Nf3 {[%emt 0:00:00]} d6 {[%emt 0:00:00]} 3. d4 {[%emt 0:00:00]} cxd4 {[%emt 0:00:00]} 4. Nxd4 {[%emt 0:00:00]} Nf6 {[%emt 0:00:00]} 5. Nc3 {[%emt 0:00:08]} g6 {[%emt 0:00:00]} 6. Be3 {[%emt 0:00:24]} Bg7 {[%emt 0:00:08]} 7. Be2 {[%emt 0:00:15]} O-O {[%emt 0:00:18]} 8. O-O {[%emt 0:00:08]} a6 {[%emt 0:00:35]} 9. h3 {[%emt 0:00:21]} b5 {[%emt 0:00:32]} 10. a3 {[%emt 0:00:13]} Bb7 {[%emt 0:01:36]} 11. f3 {[%emt 0:00:18]} Nbd7 {[%emt 0:06:58]} 12. Qd2 {[%emt 0:03:53]} Qc7 {[%emt 0:03:19]} 13. Rac1 {[%emt 0:05:20]} Ne5 {[%emt 0:04:24]} 14. f4 {[%emt 0:02:21]} Nc4 {[%emt 0:04:41]} 15. Bxc4 {[%emt 0:01:09]} Qxc4 {[%emt 0:00:23]} 16. Qd3 {[%emt 0:00:36]} e5 {[%emt 0:03:40]} 17. Nf3 {[%emt 0:05:26]} Nxe4 {[%emt 0:02:14]} 18. Qxc4 {[%emt 0:01:05]} bxc4 {[%emt 0:00:11]} 19. Nxe4 {[%emt 0:00:20]} Bxe4 {[%emt 0:00:11]} 20. fxe5 {[%emt 0:00:06]} dxe5 {[%emt 0:01:03]} 21. Ng5 {[%emt 0:01:21]} Bb7 {[%emt 0:04:38]} 22. Rcd1 {[%emt 0:01:52]} h6 {[%emt 0:03:59]} 23. Nf3 {[%emt 0:02:56]} Bxf3 {[%emt 0:06:44]} 24. gxf3 {[%emt 0:01:11]} Rab8 {[%emt 0:06:39]} 25. Bc5 {[%emt 0:01:14]} Rfc8 {[%emt 0:09:58]} 26. Bb4 {[%emt 0:00:22]} a5 {[%emt 0:02:18]} 27. Bc3 {[%emt 0:00:35]} Rb7 {[%emt 0:05:37]} 28. Rd5 {[%emt 0:01:15]} a4 {[%emt 0:01:15]} 29. Rb1 {[%emt 0:00:38]} e4 {[%emt 0:06:11]} 30. Bxg7 {[%emt 0:00:44]} Kxg7 {[%emt 0:00:04]} 31. fxe4 {[%emt 0:00:38]} c3 {[%emt 0:00:22]} 32. b3 {[%emt 0:04:03]} axb3 {[%emt 0:00:14]} 33. cxb3 {[%emt 0:00:05]} c2 {[%emt 0:00:12]} 34. Rc1 {[%emt 0:00:05]} Rxb3 {[%emt 0:00:33]} 35. Rd2 {[%emt 0:00:07]} Rb1 {[%emt 0:00:39]} 0-1

[Event "ONJK-C 2019"]
[Site "Borne"]
[Date "2019.08.05"]
[Round "1.7"]
[White "Smeets, Kobe"]
[Black "Molanus, Florian"]
[Result "1-0"]
[ECO "B76"]
[WhiteElo "1530"]
[BlackElo "1287"]
[Annotator "NA"]
[PlyCount "41"]
[EventDate "2019.08.05"]
[EventType "swiss"]
[EventCountry "NED"]
[SourceTitle "playchess.com"]
[Source "ChessBase"]
[SourceQuality "1"]
[TimeControl "5400+30"]

1. e4 {[%emt 0:00:00]} c5 {[%emt 0:00:00]} 2. Nf3 {[%emt 0:00:00]} d6 {[%emt 0:00:00]} 3. d4 {[%emt 0:00:00]} cxd4 {[%emt 0:00:00]} 4. Nxd4 {[%emt 0:00:00]} Nf6 {[%emt 0:00:00]} 5. Nc3 {[%emt 0:00:00]} g6 {[%emt 0:00:04]} 6. f3 {[%emt 0:00:29]} Bg7 {[%emt 0:00:09]} 7. Be3 {[%emt 0:00:07]} O-O {[%emt 0:00:08]} 8. Qd2 {[%emt 0:00:20]} Nc6 {[%emt 0:00:12]} 9. Be2 {[%emt 0:00:34]} d5 {[%emt 0:01:23]} 10. O-O-O {[%emt 0:04:14]} dxe4 {[%emt 0:06:45]} 11. Nxe4 {[%emt 0:04:53]} Nxe4 {[%emt 0:04:41]} 12. fxe4 {[%emt 0:00:21]} Ne5 {[%emt 0:02:09]} 13. Qb4 {[%emt 0:11:49]} b6 {[%emt 0:06:36]} 14. Nf5 {[%emt 0:09:07]} Qc7 {[%emt 0:02:05]} 15. Nxe7+ {[%emt 0:02:26]} Kh8 {[%emt 0:01:51]} 16. Nd5 {[%emt 0:01:55]} Qb7 {[%emt 0:03:29]} 17. Bd4 {[%emt 0:01:45]} Be6 {[%emt 0:02:30]} 18. Bf3 {[%emt 0:09:17]} Rac8 {[%emt 0:03:44]} 19. b3 {[%emt 0:11:10]} Qc6 {[%emt 0:01:26]} 20. c4 {[%emt 0:03:45]} f5 {[%emt 0:02:01]} 21. Ne7 {[%emt 0:08:05]} 1-0

[Event "ONJK-C 2019"]
[Site "Borne"]
[Date "2019.08.05"]
[Round "1.8"]
[White "Van der Veen, Tjado"]
[Black "Knol, Daniel"]
[Result "0-1"]
[ECO "B21"]
[WhiteElo "1282"]
[BlackElo "1622"]
[Annotator "NA"]
[PlyCount "38"]
[EventDate "2019.08.05"]
[EventType "swiss"]
[EventCountry "NED"]
[SourceTitle "playchess.com"]
[Source "ChessBase"]
[SourceQuality "1"]
[TimeControl "5400+30"]

1. e4 {[%emt 0:00:00]} c5 {[%emt 0:00:00]} 2. Nc3 {[%emt 0:00:00]} e6 {[%emt 0:00:00]} 3. d4 {[%emt 0:00:23]} cxd4 {[%emt 0:00:00]} 4. Qxd4 {[%emt 0:00:05]} Nc6 {[%emt 0:00:01]} 5. Qd1 {[%emt 0:00:18]} Nf6 {[%emt 0:00:10]} 6. Bg5 {[%emt 0:00:43]} Be7 {[%emt 0:00:15]} 7. g3 {[%emt 0:04:01]} h6 {[%emt 0:00:26]} 8. Be3 {[%emt 0:00:21]} d5 {[%emt 0:00:25]} 9. exd5 {[%emt 0:02:01]} exd5 {[%emt 0:00:32]} 10. Bd2 {[%emt 0:01:09]} Qb6 {[%emt 0:00:16]} 11. b3 {[%emt 0:01:25]} O-O {[%emt 0:00:59]} 12. Be3 {[%emt 0:02:06]} d4 {[%emt 0:00:12]} 13. Na4 {[%emt 0:00:40]} Qd8 {[%emt 0:01:24]} 14. Bc1 {[%emt 0:01:20]} Qd5 {[%emt 0:00:13]} 15. Nf3 {[%emt 0:01:19]} Bg4 {[%emt 0:00:17]} 16. Bg2 {[%emt 0:04:07]} Ne5 {[%emt 0:02:00]} 17. Nh4 {[%emt 0:08:57]} Qe6 {[%emt 0:00:17]} 18. f3 {[%emt 0:01:42]} Nxf3+ {[%emt 0:00:30]} 19. Kf1 {[%emt 0:01:59]} Nxh2+ {[%emt 0:00:15]} 0-1

[Event "ONJK-C 2019"]
[Site "Borne"]
[Date "2019.08.05"]
[Round "1.9"]
[White "De Heij, Mees"]
[Black "Molanus, Eva"]
[Result "1-0"]
[ECO "B30"]
[WhiteElo "1545"]
[BlackElo "1281"]
[Annotator "NA"]
[PlyCount "35"]
[EventDate "2019.08.05"]
[EventType "swiss"]
[EventCountry "NED"]
[SourceTitle "playchess.com"]
[Source "ChessBase"]
[SourceQuality "1"]
[TimeControl "5400+30"]

1. e4 {[%emt 0:00:00]} c5 {[%emt 0:00:00]} 2. Nf3 {[%emt 0:00:00]} d6 {[%emt 0:00:00]} 3. Nc3 {[%emt 0:00:15]} Nf6 {[%emt 0:00:05]} 4. Bc4 {[%emt 0:00:30]} g6 {[%emt 0:00:29]} 5. O-O {[%emt 0:00:36]} Bg7 {[%emt 0:00:05]} 6. h3 {[%emt 0:00:25]} O-O {[%emt 0:00:25]} 7. d3 {[%emt 0:00:26]} Nc6 {[%emt 0:00:41]} 8. Bg5 {[%emt 0:01:37]} Bd7 {[%emt 0:02:36]} 9. Qd2 {[%emt 0:01:28]} Qc7 {[%emt 0:00:32]} 10. Bxf6 {[%emt 0:08:28]} Bxf6 {[%emt 0:00:36]} 11. Nd5 {[%emt 0:00:06]} Qc8 {[%emt 0:01:50]} 12. Nxf6+ {[%emt 0:01:36]} exf6 {[%emt 0:00:09]} 13. Qh6 {[%emt 0:00:37]} Ne5 {[%emt 0:06:15]} 14. Nxe5 {[%emt 0:01:58]} fxe5 {[%emt 0:00:26]} 15. f4 {[%emt 0:01:00]} b5 {[%emt 0:02:16]} 16. Bd5 {[%emt 0:00:52]} Bc6 {[%emt 0:01:08]} 17. f5 {[%emt 0:00:33]} Bxd5 {[%emt 0:01:33]} 18. f6 {[%emt 0:00:40]} 1-0

[Event "ONJK-C 2019"]
[Site "Borne"]
[Date "2019.08.05"]
[Round "1.10"]
[White "Buijnsters, Floris"]
[Black "Arnold, Lorin"]
[Result "1/2-1/2"]
[ECO "B33"]
[WhiteElo "1259"]
[BlackElo "1583"]
[Annotator "NA"]
[PlyCount "63"]
[EventDate "2019.08.05"]
[EventType "swiss"]
[EventCountry "NED"]
[SourceTitle "playchess.com"]
[Source "ChessBase"]
[SourceQuality "1"]
[TimeControl "5400+30"]

1. e4 {[%emt 0:00:00]} c5 {[%emt 0:00:00]} 2. Nf3 {[%emt 0:00:00]} Nc6 {[%emt 0:00:03]} 3. d4 {[%emt 0:00:13]} cxd4 {[%emt 0:00:04]} 4. Nxd4 {[%emt 0:00:00]} e5 {[%emt 0:00:05]} 5. Nf3 {[%emt 0:01:36]} Nf6 {[%emt 0:00:12]} 6. Nc3 {[%emt 0:00:17]} Bb4 {[%emt 0:00:06]} 7. Bd2 {[%emt 0:04:07]} d5 {[%emt 0:04:07]} 8. exd5 {[%emt 0:02:56]} Nxd5 {[%emt 0:01:45]} 9. Nxd5 {[%emt 0:04:52]} Qxd5 {[%emt 0:00:23]} 10. Bxb4 {[%emt 0:00:40]} Qe4+ {[%emt 0:00:35]} 11. Qe2 {[%emt 0:01:50]} Qxb4+ {[%emt 0:00:12]} 12. c3 {[%emt 0:00:41]} Qf4 {[%emt 0:02:01]} 13. g3 {[%emt 0:04:17]} Qf6 {[%emt 0:00:26]} 14. Qe3 {[%emt 0:01:22]} O-O {[%emt 0:00:20]} 15. Bg2 {[%emt 0:01:17]} Bg4 {[%emt 0:00:25]} 16. O-O {[%emt 0:00:45]} Rfe8 {[%emt 0:01:17]} 17. Rfe1 {[%emt 0:01:09]} Rad8 {[%emt 0:00:21]} 18. Nd4 {[%emt 0:02:41]} Nxd4 {[%emt 0:01:55]} 19. cxd4 {[%emt 0:00:11]} e4 {[%emt 0:02:08]} 20. Bxe4 {[%emt 0:14:50]} Bf5 {[%emt 0:03:14]} 21. Qd3 {[%emt 0:01:22]} Bxe4 {[%emt 0:01:46]} 22. Rxe4 {[%emt 0:00:35]} g6 {[%emt 0:05:18]} 23. Rae1 {[%emt 0:02:33]} Rxe4 {[%emt 0:01:52]} 24. Qxe4 {[%emt 0:02:09]} Rxd4 {[%emt 0:00:49]} 25. Qxb7 {[%emt 0:04:46]} Rd2 {[%emt 0:00:17]} 26. Qxa7 {[%emt 0:00:41]} Qxb2 {[%emt 0:00:29]} 27. Re7 {[%emt 0:01:40]} Qc1+ {[%emt 0:02:23]} 28. Kg2 {[%emt 0:01:28]} Qc6+ {[%emt 0:00:07]} 29. Kh3 {[%emt 0:00:52]} Qc8+ {[%emt 0:00:13]} 30. Kg2 {[%emt 0:04:51]} Qc6+ {[%emt 0:00:19]} 31. Kh3 {[%emt 0:00:12]} Qc8+ {[%emt 0:00:04]} 32. Kg2 {[%emt 0:03:23]} 1/2-1/2

[Event "ONJK-C 2019"]
[Site "Borne"]
[Date "2019.08.05"]
[Round "1.11"]
[White "DHaenens, Leon"]
[Black "Hooijmans, Merijn"]
[Result "1-0"]
[ECO "A38"]
[WhiteElo "1583"]
[BlackElo "1267"]
[Annotator "NA"]
[PlyCount "51"]
[EventDate "2019.08.05"]
[EventType "swiss"]
[EventCountry "NED"]
[SourceTitle "playchess.com"]
[Source "ChessBase"]
[SourceQuality "1"]
[TimeControl "5400+30"]

1. c4 {[%emt 0:00:00]} c5 {[%emt 0:00:00]} 2. g3 {[%emt 0:00:00]} g6 {[%emt 0:00:00]} 3. Bg2 {[%emt 0:00:00]} Bg7 {[%emt 0:00:04]} 4. Nc3 {[%emt 0:00:00]} Nc6 {[%emt 0:00:14]} 5. Nf3 {[%emt 0:00:08]} Nf6 {[%emt 0:00:18]} 6. d4 {[%emt 0:00:56]} b6 {[%emt 0:01:03]} 7. O-O {[%emt 0:02:28]} d6 {[%emt 0:00:59]} 8. b3 {[%emt 0:04:34]} O-O {[%emt 0:01:03]} 9. Bb2 {[%emt 0:01:34]} Bd7 {[%emt 0:01:26]} 10. Re1 {[%emt 0:02:42]} Qc8 {[%emt 0:01:15]} 11. Rc1 {[%emt 0:03:32]} Bh3 {[%emt 0:00:51]} 12. Bh1 {[%emt 0:02:28]} Nb4 {[%emt 0:00:38]} 13. Ng5 {[%emt 0:01:32]} Nc6 {[%emt 0:01:34]} 14. Nxh3 {[%emt 0:00:24]} Qxh3 {[%emt 0:00:39]} 15. Bxc6 {[%emt 0:02:36]} Ng4 {[%emt 0:00:45]} 16. Bg2 {[%emt 0:00:19]} Qxh2+ {[%emt 0:00:12]} 17. Kf1 {[%emt 0:00:10]} Bxd4 {[%emt 0:01:15]} 18. e3 {[%emt 0:00:40]} Bxc3 {[%emt 0:02:07]} 19. Bxc3 {[%emt 0:00:39]} h5 {[%emt 0:00:39]} 20. Qf3 {[%emt 0:03:28]} e5 {[%emt 0:02:34]} 21. Ke2 {[%emt 0:01:13]} f5 {[%emt 0:01:33]} 22. Qd5+ {[%emt 0:00:51]} Kh8 {[%emt 0:01:15]} 23. Rh1 {[%emt 0:00:56]} Nf6 {[%emt 0:01:18]} 24. Qxa8 {[%emt 0:01:52]} Rxa8 {[%emt 0:01:39]} 25. Bxa8 {[%emt 0:00:29]} Qxh1 {[%emt 0:01:10]} 26. Rxh1 {[%emt 0:00:19]} 1-0